bitfinex-derivatives/quotes_BNBF0:USTF0_20251027
["timestamp","ask_amount","ask_price","bid_price","bid_amount"]
[1761551557704,2.1436001,1161.2,1158.4,1.115]
[1761551558504,2.1436001,1161.2,1157.9,0.63557762]
[1761551558704,2.1436001,1161.2,1158.0,0.59807464]
[1761551558905,2.1436001,1161.2,1158.1,0.59807464]
[1761551559205,2.1436001,1161.2,1158.2,0.59807464]
[1761551559407,2.1436001,1161.2,1157.9,0.63557762]
[1761551559408,2.1436001,1161.2,1158.3,0.59807464]
[1761551559607,2.1436001,1161.2,1158.4,0.59807464]
[1761551559806,2.1436001,1161.2,1157.9,0.63557762]
[1761551560004,2.1436001,1161.2,1158.0,0.59832592]
[1761551560204,2.1436001,1161.2,1158.1,0.59832592]
[1761551560502,2.1436001,1161.7,1158.2,0.59832592]
[1761551560703,2.1436001,1161.7,1158.3,0.59832592]
[1761551560908,2.1436001,1161.8,1157.6,0.63557762]
[1761551561106,2.1436001,1161.8,1157.7,0.59384902]
[1761551561306,2.1436001,1161.8,1157.8,0.59384902]
[1761551561608,2.1436001,1161.7,1157.9,1.85384902]
[1761551561806,2.1436001,1161.7,1158.0,0.59384902]
[1761551562008,2.1436001,1161.7,1158.1,0.59384902]
[1761551562206,2.1436001,1161.7,1157.9,1.26]
[1761551562408,2.1436001,1160.9,1158.0,0.59462175]
[1761551562609,2.1436001,1160.9,1158.1,0.59462175]
[1761551562808,2.1436001,1160.9,1157.9,1.26]
[1761551563110,2.1436001,1160.9,1158.0,0.59462204]
[1761551563311,2.1436001,1160.9,1158.1,0.59462204]
[1761551563511,2.1436001,1160.9,1157.9,1.26]
[1761551563706,2.1436001,1160.9,1158.0,0.59472826]
[1761551563910,2.1436001,1161.1,1158.1,0.59472826]
[1761551564108,2.1436001,1161.1,1157.9,1.26]
[1761551564310,2.1436001,1161.1,1158.0,0.59491794]
[1761551564511,2.1436001,1161.0,1157.9,1.26]
[1761551564710,2.1436001,1161.0,1158.0,0.59483317]
[1761551564913,2.1436001,1161.0,1157.9,1.26]
[1761551565110,2.1436001,1161.0,1158.0,0.59149327]
[1761551565414,2.1436001,1161.0,1157.9,1.26]
[1761551565614,2.1436001,1161.0,1158.0,0.59139046]
[1761551565813,2.1436001,1161.0,1157.9,1.26]
[1761551566113,2.1436001,1160.1,1157.9,1.26]
[1761551567614,2.1436001,1160.2,1157.9,1.26]
[1761551568611,2.1436001,1160.3,1157.9,1.26]
[1761551569712,2.1436001,1160.2,1157.9,1.26]
[1761551570715,2.1436001,1160.3,1157.9,1.26]
[1761551571717,2.1436001,1160.5,1157.9,1.26]
[1761551576018,2.1436001,1160.6,1157.9,1.26]
[1761551580520,2.1436001,1160.5,1157.9,1.26]
[1761551582222,2.1436001,1160.4,1157.9,1.26]
[1761551582622,2.1436001,1160.2,1157.9,1.26]
[1761551583118,2.1436001,1160.1,1157.9,1.26]
[1761551584224,2.1436001,1159.8,1157.9,1.26]
[1761551585718,2.1436001,1159.9,1157.9,1.26]
[1761551588724,2.1436001,1159.9,1157.2,0.63557762]
[1761551589023,2.1436001,1160.0,1157.3,0.582807]
[1761551589225,2.1436001,1160.0,1157.4,0.582807]
[1761551589425,2.1436001,1160.0,1157.5,0.582807]
[1761551589621,2.1436001,1160.0,1157.6,0.582807]
[1761551589820,2.1436001,1160.0,1157.2,0.63557762]
[1761551590024,2.1436001,1160.0,1157.3,0.58272602]
[1761551590220,2.1436001,1160.0,1157.4,0.58272602]
[1761551590420,2.1436001,1160.0,1157.5,0.58272602]
[1761551590622,2.1436001,1160.0,1157.2,0.63557762]
[1761551590623,2.1436001,1160.0,1157.6,0.58272602]
[1761551590924,2.1436001,1160.0,1157.2,0.63557762]
[1761551591224,2.1436001,1160.0,1157.3,0.58263801]
[1761551591424,2.1436001,1160.4,1157.4,0.58263801]
[1761551591625,2.1436001,1160.4,1157.5,1.77363801]
[1761551591922,2.1436001,1160.4,1157.5,1.191]
[1761551594526,2.1436001,1160.6,1157.5,1.191]
[1761551595720,2.1436001,1160.4,1157.5,1.191]
[1761551596125,2.1436001,1160.5,1157.5,1.191]
[1761551596825,2.1436001,1160.5,1157.6,0.58102761]
[1761551597024,2.1436001,1160.5,1157.5,1.191]
[1761551597221,5.1446403,1161.0,1157.6,0.58102749]
[1761551597420,5.1446403,1161.0,1157.5,1.191]
[1761551597619,2.1436001,1161.0,1157.6,0.58097545]
[1761551597824,2.1436001,1161.0,1157.5,1.191]
[1761551598119,2.1436001,1161.0,1157.6,0.58098881]
[1761551598321,2.1436001,1160.9,1157.5,1.191]
[1761551598524,2.1436001,1160.9,1157.6,0.58104095]
[1761551598721,2.1436001,1161.0,1157.5,1.191]
[1761551598921,2.1436001,1161.0,1157.6,0.58092022]
[1761551599125,2.1436001,1161.0,1157.5,1.191]
[1761551599324,2.1436001,1161.0,1157.6,0.58090061]
[1761551599520,2.1436001,1161.0,1157.5,1.191]
[1761551599825,2.1436001,1160.9,1157.6,0.5808917]
[1761551600022,2.1436001,1160.9,1157.5,1.191]
[1761551600226,2.1436001,1160.5,1157.6,0.58088402]
[1761551600426,2.1436001,1160.5,1157.5,1.191]
[1761551600624,2.1436001,1160.5,1157.6,0.58086944]
[1761551600824,2.1436001,1160.5,1157.5,1.191]
[1761551600825,2.1436001,1160.4,1157.5,1.191]
[1761551601023,2.1436001,1160.4,1157.6,0.58089218]
[1761551601228,2.1436001,1160.4,1157.5,1.191]
[1761551601427,2.1436001,1160.4,1157.6,0.58100497]
[1761551601725,2.1436001,1160.4,1157.5,1.191]
[1761551601924,2.1436001,1160.4,1157.6,0.58100521]
[1761551602129,2.1436001,1160.4,1157.5,1.191]
[1761551603530,2.1436001,1159.7,1157.5,1.191]
[1761551604731,2.1436001,1159.8,1157.5,1.191]
[1761551606632,3.0010402,1160.2,1157.5,1.191]
[1761551607036,2.1436001,1160.6,1157.5,1.191]
[1761551608738,2.1436001,1160.8,1157.5,1.191]
[1761551610138,2.1436001,1161.2,1157.5,1.191]
[1761551610735,2.1436001,1161.1,1157.5,1.191]
[1761551611838,2.1436001,1161.0,1157.5,1.191]
[1761551612339,2.1436001,1160.6,1157.5,1.191]
[1761551612842,2.1436001,1160.4,1157.5,1.191]
[1761551615945,2.1436001,1159.6,1157.5,1.191]
[1761551617045,2.1436001,1159.7,1157.5,1.191]
[1761551617446,2.1436001,1159.6,1157.5,1.191]
[1761551618641,2.1436001,1159.8,1157.5,1.191]
[1761551623346,2.1436001,1159.7,1157.5,1.191]
[1761551625251,2.1436001,1159.4,1157.5,1.191]
[1761551625851,2.1436001,1159.6,1157.5,1.191]
[1761551626351,2.1436001,1159.7,1157.5,1.191]
[1761551627048,2.1436001,1159.8,1157.5,1.191]
[1761551627553,2.1436001,1159.9,1157.5,1.191]
[1761551628453,2.1436001,1160.0,1157.5,1.191]
[1761551630548,2.1436001,1160.1,1157.5,1.191]
[1761551631650,2.1436001,1160.1,1156.3,0.63974778]
[1761551631850,2.1436001,1160.1,1156.4,0.57572899]
[1761551632150,2.1436001,1160.1,1156.5,0.57572899]
[1761551632353,2.1436001,1160.1,1156.6,0.57572899]
[1761551632554,2.1436001,1160.1,1156.7,0.57572899]
[1761551632850,2.1436001,1160.2,1156.8,0.57572899]
[1761551633049,2.1436001,1160.2,1156.9,0.57572899]
[1761551633253,2.1436001,1160.2,1156.3,0.63974778]
[1761551633453,2.1436001,1160.2,1156.4,0.57558313]
[1761551633658,2.1436001,1160.1,1156.5,0.57558313]
[1761551633852,2.1436001,1160.1,1156.6,0.57558313]
[1761551634055,2.1436001,1160.1,1156.7,0.57558313]
[1761551634252,2.1436001,1160.1,1156.8,0.57558313]
[1761551634552,2.1436001,1160.1,1156.9,0.57558313]
[1761551634852,2.1436001,1160.1,1156.3,0.63974778]
[1761551635051,2.1436001,1160.1,1156.4,0.57538932]
[1761551635357,2.1436001,1160.1,1156.5,0.57538932]
[1761551635552,2.1436001,1160.1,1156.6,0.57538932]
[1761551635754,2.1436001,1160.0,1156.7,2.28938932]
[1761551635952,2.1436001,1160.0,1156.8,0.57538932]
[1761551636153,2.1436001,1160.0,1156.9,0.57538932]
[1761551636353,2.1436001,1159.8,1156.7,1.714]
[1761551636558,2.1436001,1159.8,1156.8,0.57540097]
[1761551636759,2.1436001,1159.8,1156.7,1.714]
[1761551636959,2.1436001,1159.8,1156.8,0.57538565]
[1761551637159,2.1436001,1159.8,1156.7,1.714]
[1761551637359,2.1436001,1159.3,1156.8,0.57535926]
[1761551637560,2.1436001,1159.3,1156.7,1.714]
[1761551637758,2.1436001,1159.3,1156.8,0.5753593]
[1761551637960,2.1436001,1159.2,1156.7,1.714]
[1761551638161,2.1436001,1159.2,1156.8,0.57535933]
[1761551638358,2.1436001,1159.2,1156.7,1.714]
[1761551638556,2.1436001,1159.2,1156.8,0.5753979]
[1761551638758,2.1436001,1159.2,1156.9,0.57539809]
[1761551638957,3.0010402,1159.6,1156.7,1.714]
[1761551639159,3.0010402,1159.6,1156.8,0.57539801]
[1761551639363,2.1436001,1159.7,1156.7,1.714]
[1761551639560,2.1436001,1159.7,1156.8,0.57546084]
[1761551639764,2.1436001,1159.7,1156.9,0.57546084]
[1761551639965,7.2882405,1160.2,1156.7,1.714]
[1761551640261,7.2882405,1160.2,1156.8,0.57545969]
[1761551640462,2.1436001,1160.3,1156.9,0.57545969]
[1761551640765,2.1436001,1160.3,1156.7,1.714]
[1761551640962,2.1436001,1160.3,1156.8,0.57547885]
[1761551641262,2.1436001,1160.3,1156.9,0.57547885]
[1761551641460,2.1436001,1160.3,1156.7,1.714]
[1761551641665,2.1436001,1160.3,1156.8,0.57553771]
[1761551641965,2.1436001,1160.3,1156.9,0.57553771]
[1761551642165,2.1436001,1160.3,1156.7,1.714]
[1761551642362,2.1436001,1160.3,1156.8,0.57560245]
[1761551642662,2.1436001,1160.3,1156.9,0.57560245]
[1761551642865,2.1436001,1160.3,1156.7,1.714]
[1761551643065,2.1436001,1160.3,1156.8,0.57560111]
[1761551643366,2.1436001,1160.3,1156.9,0.57560111]
[1761551643565,2.1436001,1160.3,1156.7,1.714]
[1761551644164,2.1436001,1159.2,1156.7,1.714]
[1761551644366,2.1436001,1159.2,1156.8,0.5756967]
[1761551644566,2.1436001,1159.2,1156.7,1.714]
[1761551644567,2.1436001,1159.1,1156.7,1.714]
[1761551644863,2.1436001,1159.1,1156.8,0.57569902]
[1761551645067,2.1436001,1159.1,1156.7,1.714]
[1761551645267,2.1436001,1159.1,1156.8,0.57569688]
[1761551645466,2.1436001,1159.1,1156.7,1.714]
[1761551645668,2.1436001,1159.6,1156.8,0.57573708]
[1761551645868,2.1436001,1159.6,1156.7,1.714]
[1761551646068,2.1436001,1159.7,1156.8,0.57572452]
[1761551646269,2.1436001,1159.7,1156.7,1.714]
[1761551646566,2.1436001,1159.7,1156.8,0.57574769]
[1761551646768,2.1436001,1159.7,1156.7,1.714]
[1761551646965,2.1436001,1159.7,1156.8,0.57570501]
[1761551647266,2.1436001,1159.1,1156.7,1.714]
[1761551647570,2.1436001,1159.1,1156.8,0.57576154]
[1761551647864,2.1436001,1159.1,1156.9,0.57576248]
[1761551648168,2.1436001,1159.1,1156.7,1.714]
[1761551648465,2.1436001,1159.1,1156.8,0.57587121]
[1761551648668,2.1436001,1159.1,1156.9,0.57587121]
[1761551648868,2.1436001,1159.1,1156.7,1.714]
[1761551649069,2.1436001,1159.1,1156.8,0.57586159]
[1761551649365,2.1436001,1159.3,1156.9,0.57586159]
[1761551649668,2.1436001,1159.3,1156.7,1.714]
[1761551649869,2.1436001,1159.3,1156.8,0.57593855]
[1761551650169,2.1436001,1159.3,1156.9,0.57593855]
[1761551650468,2.1436001,1159.3,1156.7,1.714]
[1761551650763,2.1436001,1159.3,1156.8,0.57603184]
[1761551651068,2.1436001,1159.3,1156.9,0.57603184]
[1761551651269,2.1436001,1159.4,1157.0,0.57604198]
[1761551651470,2.1436001,1159.4,1156.7,1.714]
[1761551651666,2.1436001,1159.4,1156.8,0.57597712]
[1761551651867,2.1436001,1159.4,1156.7,1.714]
[1761551651868,2.1436001,1159.4,1156.9,0.57597712]
[1761551652067,2.1436001,1159.6,1157.0,0.57597712]
[1761551652270,2.1436001,1159.6,1157.1,0.57597712]
[1761551652567,2.1436001,1159.4,1156.8,0.63974778]
[1761551652866,2.1436001,1159.4,1156.9,0.57586277]
[1761551653065,2.1436001,1159.4,1157.0,0.57586277]
[1761551653264,2.1436001,1159.4,1157.1,0.57586277]
[1761551653466,2.1436001,1159.4,1156.7,2.35374778]
[1761551653665,2.1436001,1159.7,1156.8,0.57596302]
[1761551653867,2.1436001,1159.7,1156.9,0.57596302]
[1761551654066,2.1436001,1159.8,1157.0,0.57596302]
[1761551654266,2.1436001,1159.8,1157.1,0.57596302]
[1761551654465,2.1436001,1159.8,1157.2,0.57596302]
[1761551654671,2.1436001,1159.8,1156.7,2.35374778]
[1761551654971,2.1436001,1159.8,1156.8,0.57605752]
[1761551655267,2.1436001,1159.6,1156.9,0.57605752]
[1761551655466,2.1436001,1159.6,1157.0,0.57605752]
[1761551655767,2.1436001,1159.7,1157.1,0.57605752]
[1761551655970,2.1436001,1159.7,1156.7,2.35374778]
[1761551656271,2.1436001,1159.8,1156.8,0.57615996]
[1761551656469,2.1436001,1159.8,1156.9,0.57615996]
[1761551656667,2.1436001,1159.8,1157.0,0.57615996]
[1761551656866,2.1436001,1159.8,1157.1,0.57615996]
[1761551657067,2.1436001,1159.8,1156.7,2.35374778]
[1761551657271,2.1436001,1159.8,1156.8,0.57467208]
[1761551657472,2.1436001,1159.8,1156.9,0.57467208]
[1761551657772,2.1436001,1159.8,1157.0,0.57467208]
[1761551658072,2.1436001,1159.8,1157.1,0.57467208]
[1761551658372,2.1436001,1159.9,1157.2,0.57467208]
[1761551658570,2.1436001,1159.9,1156.7,0.63974778]
[1761551658768,2.1436001,1159.9,1156.8,0.57486564]
[1761551659071,2.1436001,1159.9,1156.9,0.57486564]
[1761551659270,2.1436001,1159.9,1157.0,0.57486564]
[1761551659468,2.1436001,1159.9,1157.1,0.57486564]
[1761551659671,2.1436001,1159.9,1157.2,0.57486564]
[1761551659971,2.1436001,1159.9,1156.7,0.63974778]
[1761551660268,2.1436001,1159.9,1156.8,0.57485848]
[1761551660469,2.1436001,1159.9,1156.9,0.57485848]
[1761551660673,2.1436001,1159.9,1157.0,0.57485848]
[1761551660874,2.1436001,1159.6,1157.1,1.75785848]
[1761551661072,2.1436001,1159.6,1157.1,1.183]
[1761551661874,2.1436001,1158.9,1157.1,1.183]
[1761551663474,2.1436001,1158.8,1157.1,1.183]
[1761551669180,2.1436001,1158.9,1157.1,1.183]
[1761551670679,2.1436001,1159.2,1157.1,1.183]
[1761551672881,2.1436001,1158.9,1157.1,1.183]
[1761551673985,2.1436001,1158.7,1157.1,1.183]
[1761551676086,2.1436001,1158.6,1157.1,1.183]
[1761551676489,2.1436001,1158.7,1157.1,1.183]
[1761551682692,2.1436001,1159.0,1157.1,1.183]
[1761551683695,2.1436001,1159.1,1157.1,1.183]
[1761551685794,2.1436001,1159.2,1157.1,1.183]
[1761551686200,3.0010402,1159.7,1157.1,1.183]
[1761551686695,0.15031651,1159.1,1157.1,1.183]
[1761551693701,2.1436001,1159.0,1157.1,1.183]
[1761551694102,2.29391661,1159.1,1157.1,1.183]
[1761551695803,0.15031651,1159.1,1157.1,1.183]
[1761551703510,2.1436001,1159.0,1157.1,1.183]
[1761551704614,0.15031651,1159.1,1157.1,1.183]
[1761551705018,2.29391661,1159.1,1157.1,1.183]
[1761551705616,0.15031651,1159.1,1157.1,1.183]
[1761551706015,2.29391661,1159.1,1157.1,1.183]
[1761551706421,0.15031651,1159.1,1157.1,1.183]
[1761551706818,2.1436001,1159.3,1157.2,0.56576389]
[1761551707017,2.1436001,1159.3,1157.3,0.56576389]
[1761551707216,2.1436001,1159.3,1157.1,1.183]
[1761551707421,2.1436001,1159.4,1157.2,0.56562982]
[1761551707720,2.1436001,1159.4,1157.3,0.56562982]
[1761551708018,2.1436001,1159.4,1157.1,1.183]
[1761551708219,2.1436001,1159.4,1157.2,0.57523051]
[1761551708517,2.1436001,1159.4,1157.3,0.57523051]
[1761551708722,2.1436001,1159.4,1157.1,1.183]
[1761551709018,2.29387182,1159.7,1157.2,0.57500079]
[1761551709317,2.29387182,1159.7,1157.3,0.57500079]
[1761551709526,0.15027172,1159.7,1157.4,0.57500079]
[1761551709721,0.15027172,1159.7,1157.5,0.57500079]
[1761551709922,0.15027172,1159.7,1157.1,1.183]
[1761551710119,0.15027172,1159.7,1157.2,0.57474764]
[1761551710317,0.15027172,1159.7,1157.3,0.57474764]
[1761551710518,0.15027172,1159.7,1157.4,0.57474764]
[1761551710716,0.15027172,1159.7,1157.5,0.57474764]
[1761551710919,0.15027172,1159.7,1157.1,1.82274778]
[1761551711219,0.15027172,1159.7,1157.2,0.57444699]
[1761551711417,0.15027172,1159.7,1157.3,0.57444699]
[1761551711616,0.15027172,1159.7,1157.4,0.57444699]
[1761551711818,0.15027172,1159.7,1157.5,0.57444699]
[1761551712023,0.15027172,1159.7,1157.0,0.63974778]
[1761551712320,0.15027172,1159.7,1157.1,0.57422882]
[1761551712619,0.15027172,1159.7,1157.2,0.57422882]
[1761551712823,2.1436001,1160.0,1157.3,0.57422882]
[1761551713021,0.15024382,1159.9,1157.4,0.57422882]
[1761551713218,0.15024382,1159.9,1157.5,0.57422882]
[1761551713419,0.15024382,1159.9,1157.0,0.63974778]
[1761551713622,0.15024382,1159.9,1157.1,0.57375763]
[1761551713822,0.15024382,1159.9,1157.2,0.57375763]
[1761551714022,0.15024382,1159.9,1157.3,0.57375763]
[1761551714219,0.15024382,1159.9,1157.4,0.57375763]
[1761551714422,0.15024382,1159.9,1157.5,0.57375763]
[1761551714622,2.1436001,1159.8,1157.2,0.63974778]
[1761551714821,2.1436001,1159.8,1157.3,0.57345317]
[1761551715020,2.1436001,1159.8,1157.4,0.57345317]
[1761551715221,2.1436001,1159.8,1157.5,0.57345317]
[1761551715524,2.1436001,1159.8,1157.6,1.699]
[1761551716225,2.29384392,1159.9,1157.6,1.699]
[1761551716725,0.15024382,1159.9,1157.6,1.699]
[1761551719623,0.15024382,1159.9,1157.7,0.5721025]
[1761551719927,0.15024382,1159.9,1157.6,1.699]
[1761551720127,0.15024382,1159.9,1157.7,0.57209924]
[1761551720328,0.15024382,1159.9,1157.6,1.699]
[1761551720624,0.15024382,1159.9,1157.7,0.57188846]
[1761551720828,0.15024382,1159.9,1157.6,1.699]
[1761551721025,0.15024382,1159.9,1157.7,0.57188858]
[1761551721229,0.15024382,1159.9,1157.6,1.699]
[1761551721427,0.15024382,1159.9,1157.7,0.57167811]
[1761551721627,0.15024382,1159.9,1157.6,1.699]
[1761551721832,0.15024382,1159.9,1157.7,0.57167819]
[1761551722030,0.15024382,1159.9,1157.6,1.699]
[1761551722330,0.15024382,1159.9,1157.7,0.57167874]
[1761551722528,0.15024382,1159.9,1157.6,1.699]
[1761551722730,0.15024382,1159.9,1157.7,0.57141589]
[1761551722926,0.15024382,1159.9,1157.6,1.699]
[1761551723126,0.15024382,1159.9,1157.7,0.5714153]
[1761551723328,0.15024382,1159.9,1157.6,1.699]
[1761551723530,0.15024382,1159.9,1157.7,0.57122844]
[1761551723728,0.15024382,1159.9,1157.6,1.699]
[1761551723929,0.15024382,1159.9,1157.7,0.57122836]
[1761551724131,0.15024382,1159.9,1157.6,1.699]
[1761551724330,0.15024382,1159.9,1157.7,0.57105939]
[1761551724529,0.15024382,1159.9,1157.6,1.699]
[1761551724733,0.15024382,1159.9,1157.7,0.57108154]
[1761551724931,0.15024382,1159.9,1157.6,1.699]
[1761551725134,0.15024382,1159.9,1157.7,0.57109125]
[1761551725334,0.15024382,1159.9,1157.6,1.699]
[1761551725636,0.15024382,1159.9,1157.7,0.57093402]
[1761551725836,0.15024382,1159.9,1157.6,1.699]
[1761551726040,0.15024382,1159.9,1157.7,0.57093418]
[1761551726339,0.15024382,1159.9,1157.6,1.699]
[1761551726540,0.15024382,1159.9,1157.7,0.57078681]
[1761551726740,0.15024382,1159.9,1157.6,1.699]
[1761551726940,0.15024382,1159.9,1157.7,0.57078712]
[1761551727238,0.15024382,1159.9,1157.6,1.699]
[1761551727440,0.15024382,1159.9,1157.7,0.5706246]
[1761551727641,0.15024382,1159.9,1157.6,1.699]
[1761551727842,0.15024382,1159.9,1157.7,0.57044713]
[1761551728141,0.15024382,1159.9,1157.6,1.699]
[1761551728342,0.15024382,1159.9,1157.7,0.57031907]
[1761551728541,0.15024382,1159.9,1157.6,1.699]
[1761551735446,0.15024382,1159.9,1157.7,0.56979191]
[1761551735746,0.15024382,1159.9,1157.6,1.699]
[1761551735946,0.15024382,1159.9,1157.7,0.56978803]
[1761551736146,0.15024382,1159.9,1157.6,1.699]
[1761551736343,0.15024382,1159.9,1157.7,0.56976285]
[1761551736542,0.15024382,1159.9,1157.6,1.699]
[1761551736741,0.15024382,1159.9,1157.7,0.56978103]
[1761551736946,0.15024382,1159.9,1157.6,1.699]
[1761551737143,0.15024382,1159.9,1157.7,0.56976832]
[1761551737443,0.15024382,1159.9,1157.6,1.699]
[1761551737643,0.15024382,1159.9,1157.7,0.57102961]
[1761551737843,0.15024382,1159.9,1157.6,1.699]
[1761551738042,0.15024382,1159.9,1157.7,0.57102977]
[1761551738246,0.15024382,1159.9,1157.6,1.699]
[1761551742545,0.15024382,1159.9,1156.9,0.63974778]
[1761551742848,0.15024382,1159.9,1157.0,0.56822866]
[1761551743046,0.15024382,1159.9,1157.1,0.56822866]
[1761551743245,0.15024382,1159.9,1157.2,0.56822866]
[1761551743546,0.15024382,1159.9,1157.3,0.56822866]
[1761551743751,0.15024382,1159.9,1156.9,0.63974778]
[1761551744046,0.15024382,1159.9,1157.0,0.56830605]
[1761551744349,0.15024382,1159.9,1157.1,0.56830605]
[1761551744546,0.15024382,1159.9,1157.2,0.56830605]
[1761551744844,0.15024382,1159.9,1157.3,0.56830605]
[1761551745048,0.15024382,1159.9,1156.9,0.63974778]
[1761551745246,0.15024382,1159.9,1157.0,0.56828368]
[1761551745448,0.15024382,1159.9,1157.1,1.69228368]
[1761551745646,0.15024382,1159.9,1157.2,0.56828368]
[1761551745850,0.15024382,1159.9,1157.3,0.56828368]
[1761551746052,0.15024382,1159.9,1157.1,1.124]
[1761551746253,0.15024382,1159.9,1157.2,0.56885427]
[1761551746551,0.15024382,1159.9,1157.3,0.56885427]
[1761551746748,0.15024382,1159.9,1157.1,1.124]
[1761551746952,0.15024382,1159.9,1157.2,0.56883694]
[1761551747149,0.15024382,1159.9,1157.3,0.56883694]
[1761551747352,0.15024382,1159.9,1157.1,1.124]
[1761551747648,0.15024382,1159.9,1157.2,0.56898327]
[1761551747852,0.15024382,1159.9,1157.3,0.56898327]
[1761551748052,0.15024382,1159.9,1157.1,1.124]
[1761551748249,0.15024382,1159.9,1157.2,0.56906241]
[1761551748453,0.15024382,1159.9,1157.3,0.56906241]
[1761551748650,0.15024382,1159.9,1157.1,1.124]
[1761551748853,0.15024382,1159.9,1157.2,0.5691216]
[1761551749053,0.15024382,1159.9,1157.3,0.5691216]
[1761551749254,0.15024382,1159.9,1157.1,1.124]
[1761551749453,0.15024382,1159.9,1157.2,0.56926846]
[1761551749751,0.15024382,1159.9,1157.3,0.56926846]
[1761551750051,0.15024382,1159.9,1157.1,1.124]
[1761551750252,0.15024382,1159.9,1157.2,0.56938384]
[1761551750555,0.15024382,1159.9,1157.3,0.56938384]
[1761551750755,0.15024382,1159.9,1157.4,0.5692482]
[1761551751052,0.15024382,1159.9,1157.1,1.76374778]
[1761551751257,0.15024382,1159.9,1157.2,0.56933371]
[1761551751552,0.15024382,1159.9,1157.3,0.56933371]
[1761551751753,0.15024382,1159.9,1157.4,0.56933371]
[1761551751953,0.15024382,1159.9,1157.1,1.76374778]
[1761551752253,0.15024382,1159.9,1157.2,0.56939116]
[1761551752456,0.15024382,1159.9,1157.3,0.56939116]
[1761551752654,0.15024382,1159.9,1157.4,0.56939116]
[1761551752854,0.15024382,1159.9,1157.1,1.76374778]
[1761551753058,0.15024382,1159.9,1157.2,0.56960464]
[1761551753358,0.15024382,1159.9,1157.3,0.56960464]
[1761551753556,0.15024382,1159.9,1157.4,0.56960464]
[1761551753758,0.15024382,1159.9,1157.1,1.76374778]
[1761551753954,0.15024382,1159.9,1157.2,0.5697912]
[1761551754156,0.15024382,1159.9,1157.3,0.5697912]
[1761551754358,0.15024382,1159.9,1157.4,0.5697912]
[1761551754558,0.15024382,1159.9,1157.1,1.76374778]
[1761551754757,0.15024382,1159.9,1157.2,0.56995828]
[1761551754956,0.15024382,1159.9,1157.3,0.56995828]
[1761551755156,0.15024382,1159.9,1157.4,0.56995828]
[1761551755459,0.15024382,1159.9,1157.1,1.76374778]
[1761551755460,0.15024382,1159.9,1157.5,0.56995828]
[1761551755657,0.15024382,1159.9,1157.1,1.124]
[1761551755960,0.15024382,1159.9,1157.2,0.57014289]
[1761551756156,0.15024382,1159.9,1157.3,0.57014289]
[1761551756457,0.15024382,1159.9,1157.4,0.57014289]
[1761551756661,0.15024382,1159.9,1157.5,0.57014289]
[1761551756960,0.15024382,1159.9,1157.1,1.124]
[1761551757159,0.15024382,1159.9,1157.2,0.57034299]
[1761551757355,0.15024382,1159.9,1157.3,0.57034299]
[1761551757655,0.15024382,1159.9,1157.4,0.57034299]
[1761551757859,0.15024382,1159.9,1157.5,0.57034299]
[1761551758058,0.15024382,1159.9,1157.1,1.124]
[1761551758257,0.15024382,1159.9,1157.2,0.57111721]
[1761551758458,0.15024382,1159.9,1157.3,0.57111721]
[1761551758661,0.15024382,1159.9,1157.4,0.57111721]
[1761551758857,0.15024382,1159.9,1157.5,0.57111721]
[1761551759061,0.15024382,1159.9,1157.6,0.57111721]
[1761551759262,0.15024382,1159.9,1157.1,1.76374778]
[1761551759462,0.15024382,1159.9,1157.2,0.57127147]
[1761551759661,0.15024382,1159.9,1157.3,0.57127147]
[1761551759861,0.15024382,1159.9,1157.4,0.57127147]
[1761551760158,0.15024382,1159.9,1157.5,0.57127147]
[1761551760358,0.15024382,1159.9,1157.6,0.57127147]
[1761551760558,0.15024382,1159.9,1157.1,1.76374778]
[1761551760859,0.15024382,1159.9,1157.2,0.57126006]
[1761551761060,0.15024382,1159.9,1157.3,0.57126006]
[1761551761258,0.15024382,1159.9,1157.1,1.76374778]
[1761551761259,0.15024382,1159.9,1157.4,0.57126006]
[1761551761457,0.15024382,1159.9,1157.5,0.57126006]
[1761551761658,2.1436001,1160.3,1157.6,0.57126006]
[1761551761860,0.15017834,1160.5,1157.7,1.21100784]
[1761551762161,0.15017834,1160.5,1157.8,0.57126006]
[1761551762361,0.15017834,1160.5,1157.9,0.57126006]
[1761551762562,0.15017834,1160.5,1158.0,0.57126006]
[1761551762758,0.15017834,1160.5,1158.1,0.57126006]
[1761551762958,0.15017834,1160.5,1157.7,0.63974778]
[1761551763156,0.15017834,1160.5,1157.8,0.57101082]
[1761551763361,0.15017834,1160.5,1157.9,0.57101082]
[1761551763559,0.15017834,1160.5,1158.0,0.57101082]
[1761551763759,0.15017834,1160.5,1158.1,0.57101082]
[1761551763964,0.15017834,1160.5,1158.2,0.57101082]
[1761551764161,0.15017834,1160.5,1158.3,0.57101082]
[1761551764365,0.15017834,1160.5,1158.4,0.57101082]
[1761551764566,0.15017834,1160.5,1158.5,0.57101082]
[1761551764863,0.15017834,1160.5,1157.9,0.63974778]
[1761551765066,0.15017834,1160.5,1158.0,0.61713358]
[1761551765363,0.15017834,1160.5,1158.1,0.61713358]
[1761551765566,0.15017834,1160.5,1158.2,0.61713358]
[1761551765866,0.15017834,1160.5,1158.3,0.61713358]
[1761551766163,0.15017834,1160.5,1158.4,0.61713358]
[1761551766364,0.15017834,1160.5,1158.5,0.61713358]
[1761551766562,0.15017834,1160.5,1158.6,0.61713358]
[1761551766767,0.15017834,1160.5,1158.1,0.63974778]
[1761551766964,0.15017834,1160.5,1158.2,0.61734146]
[1761551767264,0.15017834,1160.5,1158.3,2.35234146]
[1761551767468,0.15017834,1160.5,1158.4,0.61734146]
[1761551767668,0.15017834,1160.5,1158.3,1.735]
[1761551767669,0.15017834,1160.5,1158.5,0.61734146]
[1761551767864,0.15017834,1160.5,1158.6,0.61734146]
[1761551768065,0.15017834,1160.5,1158.3,1.735]
[1761551768366,0.15017834,1160.5,1158.4,0.61633038]
[1761551768572,0.15017834,1160.5,1158.5,0.61633038]
[1761551768771,0.15017834,1160.5,1158.3,1.735]
[1761551769070,0.15017834,1160.5,1158.4,0.61608072]
[1761551769371,0.15017834,1160.5,1158.5,0.61608072]
[1761551769570,0.15017834,1160.5,1158.3,1.735]
[1761551769770,0.15017834,1160.5,1158.4,0.61608097]
[1761551769967,0.15017834,1160.5,1158.5,0.61608097]
[1761551770169,0.15017834,1160.5,1158.3,1.735]
[1761551770370,0.15017834,1160.5,1158.4,0.61587466]
[1761551770568,0.15017834,1160.5,1158.5,0.61587466]
[1761551770773,0.15017834,1160.5,1158.3,1.735]
[1761551770973,0.15017834,1160.5,1158.4,0.61587442]
[1761551771174,0.15017834,1160.5,1158.5,0.61587442]